fUST/lending_fUST_20260523
["ID","MTS","AMOUNT","RATE_DAILY","PERIOD"]
[422861602,1779538239000,-547.04494404,9.143e-05,2]
[422861613,1779538239000,-204.32502231,9.144e-05,2]
[422861621,1779538239000,-553.80263649,9.165e-05,2]
[422861605,1779538239000,-547.04494404,9.143e-05,2]
[422861609,1779538239000,-547.04494404,9.143e-05,2]
[422861607,1779538239000,-547.04494404,9.143e-05,2]
[422861617,1779538239000,-443.0,9.144e-05,2]
[422861615,1779538239000,-185.0,9.144e-05,2]
[422861604,1779538239000,-547.04494404,9.143e-05,2]
[422861611,1779538239000,-547.04494404,9.143e-05,2]
[422861759,1779538241000,-236.39766523,8.767e-05,2]
[422861757,1779538241000,-500.0,8.493e-05,2]
[422861755,1779538241000,-500.0,8.219e-05,2]
[422861827,1779538244000,-500.0,9.315e-05,2]
[422861834,1779538244000,-500.0,9.315e-05,2]
[422861835,1779538244000,-727.18,9.315e-05,2]
[422861845,1779538244000,-664.25,9.315e-05,2]
[422861846,1779538244000,-500.0,9.315e-05,2]
[422861839,1779538244000,-500.0,9.315e-05,2]
[422861836,1779538244000,-503.03,9.315e-05,2]
[422861844,1779538244000,-500.0,9.315e-05,2]
[422861840,1779538244000,-3524.01,9.315e-05,2]
[422861838,1779538244000,-500.0,9.315e-05,2]
[422861837,1779538244000,-603.79,9.315e-05,2]
[422861828,1779538244000,-417.90902774,9.315e-05,2]
[422861833,1779538244000,-500.0,9.315e-05,2]
[422861825,1779538244000,-1284.7887,9.315e-05,2]
[422861830,1779538244000,-500.0,9.315e-05,2]
[422861822,1779538244000,-500.0,9.314e-05,2]
[422861824,1779538244000,-500.0,9.314e-05,2]
[422861823,1779538244000,-500.0,9.314e-05,2]
[422861831,1779538244000,-952.38,9.315e-05,2]
[422861832,1779538244000,-500.0,9.315e-05,2]
[422861821,1779538244000,-500.0,9.314e-05,2]
[422861829,1779538244000,-500.0,9.315e-05,2]
[422861820,1779538244000,-500.0,9.314e-05,2]
[422861819,1779538244000,-500.0,9.21e-05,2]
[422861818,1779538244000,-859.19736351,9.165e-05,2]
[422861817,1779538244000,-469.55347378,9.041e-05,2]
[422861816,1779538244000,-263.60233477,8.767e-05,2]
[422861841,1779538244000,-500.0,9.315e-05,2]
[422861826,1779538244000,-500.0,9.315e-05,2]
[422861843,1779538244000,-775.03,9.315e-05,2]
[422861848,1779538244000,-2400.08961978,9.496e-05,2]
[422861849,1779538244000,-1254.94243917,9.534e-05,7]
[422861875,1779538244000,-775.03,9.589e-05,2]
[422861874,1779538244000,-500.0,9.589e-05,2]
[422861868,1779538244000,-727.18,9.589e-05,2]
[422861870,1779538244000,-603.79,9.589e-05,2]
[422861869,1779538244000,-503.03,9.589e-05,2]
[422861866,1779538244000,-412.32308491,9.589e-05,2]
[422861867,1779538244000,-456.32361981,9.589e-05,2]
[422861865,1779538244000,-500.0,9.589e-05,2]
[422861863,1779538244000,-500.0,9.589e-05,2]
[422861871,1779538244000,-500.0,9.589e-05,2]
[422861862,1779538244000,-500.0,9.589e-05,2]
[422861860,1779538244000,-500.0,9.589e-05,2]
[422861864,1779538244000,-952.38,9.589e-05,2]
[422861842,1779538244000,-548.5366,9.315e-05,2]
[422861873,1779538244000,-3524.01,9.589e-05,2]
[422861861,1779538244000,-500.0,9.589e-05,2]
[422861855,1779538244000,-500.0,9.588e-05,2]
[422861856,1779538244000,-500.0,9.588e-05,2]
[422861854,1779538244000,-447.43837984,9.588e-05,2]
[422861857,1779538244000,-500.0,9.588e-05,2]
[422861853,1779538244000,-2093.31772475,9.56e-05,2]
[422861852,1779538244000,-2093.31772475,9.56e-05,2]
[422861850,1779538244000,-1162.51824883,9.534e-05,7]
[422861851,1779538244000,-500.0,9.538e-05,2]
[422861858,1779538244000,-500.0,9.588e-05,2]
[422861876,1779538244000,-236.74463,9.589e-05,2]
[422861859,1779538244000,-1284.7887,9.589e-05,2]
[422861847,1779538244000,-500.0,9.484e-05,2]
[422861872,1779538244000,-500.0,9.589e-05,2]
[422861887,1779538248000,-500.0,8.766e-05,2]
[422861888,1779538248000,-500.0,9.04e-05,2]
[422861889,1779538248000,-263.25537,9.589e-05,2]
[422861890,1779538248000,-664.25,9.589e-05,2]
[422861906,1779538249000,-246.77170686,9.863e-05,2]
[422861907,1779538249000,-178.30154785,9.863e-05,2]
[422861903,1779538249000,-727.18,9.863e-05,2]
[422861904,1779538249000,-503.03,9.863e-05,2]
[422861909,1779538249000,-3524.01,9.863e-05,2]
[422861905,1779538249000,-603.79,9.863e-05,2]
[422861924,1779538249000,-500.0,0.00010136,2]
[422861918,1779538249000,-298.68,0.0001,30]
[422861923,1779538249000,-500.0,0.00010136,2]
[422861916,1779538249000,-2850.64886456,9.995e-05,2]
[422861917,1779538249000,-7104.47126824,0.0001,2]
[422861914,1779538249000,-664.20468658,9.863e-05,2]
[422861922,1779538249000,-500.0,0.00010136,2]
[422861915,1779538249000,-500.0,9.863e-05,2]
[422861925,1779538249000,-952.38,0.00010136,2]
[422861912,1779538249000,-500.0,9.863e-05,2]
[422861910,1779538249000,-500.0,9.863e-05,2]
[422861913,1779538249000,-0.04531342,9.863e-05,2]
[422861902,1779538249000,-500.0,9.863e-05,2]
[422861899,1779538249000,-500.0,9.863e-05,2]
[422861896,1779538249000,-500.0,9.862e-05,2]
[422861901,1779538249000,-952.38,9.863e-05,2]
[422861897,1779538249000,-607.36155764,9.862e-05,2]
[422861900,1779538249000,-500.0,9.863e-05,2]
[422861895,1779538249000,-500.0,9.862e-05,2]
[422861894,1779538249000,-500.0,9.862e-05,2]
[422861891,1779538249000,-500.0,9.589e-05,2]
[422861898,1779538249000,-500.0,9.863e-05,2]
[422861893,1779538249000,-423.05948023,9.758e-05,2]
[422861892,1779538249000,-720.0,9.718e-05,2]
[422861908,1779538249000,-500.0,9.863e-05,2]
[422861919,1779538249000,-2472.15181927,0.00010066,2]
[422861911,1779538249000,-775.03,9.863e-05,2]
[422861920,1779538249000,-2472.15181927,0.00010066,2]
[422861942,1779538249000,-7104.47126824,0.000103,2]
[422861946,1779538249000,-500.0,0.0001041,2]
[422861945,1779538249000,-310.53961023,0.0001041,2]
[422861948,1779538249000,-952.38,0.0001041,2]
[422861949,1779538249000,-500.0,0.0001041,2]
[422861947,1779538249000,-500.0,0.0001041,2]
[422861944,1779538249000,-7104.47126824,0.000104,2]
[422861955,1779538249000,-500.0,9.314e-05,2]
[422861952,1779538249000,-603.79,0.0001041,2]
[422861956,1779538249000,-5000.0,9.493e-05,2]
[422861954,1779538249000,-1057.58022836,0.0001041,2]
[422861950,1779538249000,-727.18,0.0001041,2]
[422861957,1779538249000,-792.2066766,0.0001041,2]
[422861921,1779538249000,-7104.47126824,0.000101,2]
[422861951,1779538249000,-503.03,0.0001041,2]
[422861943,1779538249000,-178.30154785,0.00010311,2]
[422861953,1779538249000,-500.0,0.0001041,2]
[422861939,1779538249000,-500.0,0.00010136,2]
[422861927,1779538249000,-727.18,0.00010136,2]
[422861926,1779538249000,-500.0,0.00010136,2]
[422861928,1779538249000,-503.03,0.00010136,2]
[422861929,1779538249000,-603.79,0.00010136,2]
[422861930,1779538249000,-500.0,0.00010136,2]
[422861932,1779538249000,-521.34101988,0.00010136,2]
[422861934,1779538249000,-775.03,0.00010136,2]
[422861931,1779538249000,-3524.01,0.00010136,2]
[422861933,1779538249000,-500.0,0.00010136,2]
[422861936,1779538249000,-664.25,0.00010136,2]
[422861940,1779538249000,-7104.47126824,0.000102,2]
[422861937,1779538249000,-500.0,0.00010136,2]
[422861938,1779538249000,-500.0,0.00010136,2]
[422861935,1779538249000,-500.0,0.00010136,2]
[422861941,1779538249000,-615.92605862,0.00010218,2]
[422861966,1779539351000,-3994.48745367,7.375e-05,2]
[422861973,1779539431000,-715.63085136,7.301e-05,2]
[422861974,1779539431000,-1117.43519046,7.301e-05,2]
[422861971,1779539431000,-959.34061829,7.301e-05,2]
[422861972,1779539431000,-859.11990399,7.301e-05,2]
[422862003,1779539432000,-1065.12756219,7.301e-05,2]
[422862033,1779539437000,-31.68090207,7.375e-05,2]
[422862031,1779539437000,-283.34587371,7.301e-05,2]
[422862118,1779539438000,-561.0,7.597e-05,2]
[422862099,1779539438000,-283.35394343,7.597e-05,2]
[422862101,1779539438000,-500.0,7.597e-05,2]
[422862100,1779539438000,-500.0,7.597e-05,2]
[422862104,1779539438000,-500.0,7.597e-05,2]
[422862102,1779539438000,-500.0,7.597e-05,2]
[422862112,1779539438000,-500.0,7.597e-05,2]
[422862103,1779539438000,-500.0,7.597e-05,2]
[422862105,1779539438000,-324.8159653,7.597e-05,2]
[422862107,1779539438000,-500.0,7.597e-05,2]
[422862106,1779539438000,-500.0,7.597e-05,2]
[422862109,1779539438000,-500.0,7.597e-05,2]
[422862108,1779539438000,-500.0,7.597e-05,2]
[422862114,1779539438000,-500.0,7.597e-05,2]
[422862125,1779539438000,-563.4056743,7.599e-05,2]
[422862124,1779539438000,-563.4056743,7.599e-05,2]
[422862115,1779539438000,-500.0,7.597e-05,2]
[422862117,1779539438000,-500.0,7.597e-05,2]
[422862079,1779539438000,-500.0,7.597e-05,2]
[422862116,1779539438000,-500.0,7.597e-05,2]
[422862110,1779539438000,-500.0,7.597e-05,2]
[422862097,1779539438000,-500.0,7.597e-05,2]
[422862042,1779539438000,-510.33581839,7.562e-05,2]
[422862095,1779539438000,-500.0,7.597e-05,2]
[422862113,1779539438000,-500.0,7.597e-05,2]
[422862040,1779539438000,-154.29636026,7.375e-05,2]
[422862044,1779539438000,-326.09485757,7.597e-05,2]
[422862061,1779539438000,-500.0,7.597e-05,2]
[422862057,1779539438000,-173.90514243,7.597e-05,2]
[422862059,1779539438000,-500.0,7.597e-05,2]
[422862073,1779539438000,-500.0,7.597e-05,2]
[422862069,1779539438000,-500.0,7.597e-05,2]
[422862063,1779539438000,-500.0,7.597e-05,2]
[422862083,1779539438000,-500.0,7.597e-05,2]
[422862065,1779539438000,-500.0,7.597e-05,2]
[422862071,1779539438000,-500.0,7.597e-05,2]
[422862075,1779539438000,-500.0,7.597e-05,2]
[422862087,1779539438000,-500.0,7.597e-05,2]
[422862085,1779539438000,-500.0,7.597e-05,2]
[422862089,1779539438000,-500.0,7.597e-05,2]
[422862077,1779539438000,-197.95220995,7.597e-05,2]
[422862091,1779539438000,-500.0,7.597e-05,2]
[422862093,1779539438000,-500.0,7.597e-05,2]
[422862081,1779539438000,-500.0,7.597e-05,2]
[422862067,1779539438000,-500.0,7.597e-05,2]
[422862120,1779539438000,-5675.56544906,7.598e-05,2]
[422862111,1779539438000,-500.0,7.597e-05,2]
[422862119,1779539438000,-34337.95139271,7.598e-05,2]
[422862147,1779539438000,-28838.13609309,7.6e-05,2]
[422862143,1779539438000,-795.82076545,7.599e-05,2]
[422862145,1779539438000,-846.38854326,7.599e-05,2]
[422862149,1779539438000,-300.0,7.751e-05,2]
[422862148,1779539438000,-179.50288579,7.6e-05,2]
[422862150,1779539438000,-300.0,7.751e-05,2]
[422862156,1779539438000,-300.0,7.751e-05,2]
[422862154,1779539438000,-300.0,7.751e-05,2]
[422862164,1779539438000,-600.0,7.905e-05,2]
[422862142,1779539438000,-795.82076545,7.599e-05,2]
[422862165,1779539438000,-385.05,8e-05,2]
[422862157,1779539438000,-300.0,7.751e-05,2]
[422862158,1779539438000,-300.0,7.751e-05,2]
[422862162,1779539438000,-300.0,7.751e-05,2]
[422862163,1779539438000,-300.0,7.751e-05,2]
[422862160,1779539438000,-300.0,7.751e-05,2]
[422862155,1779539438000,-300.0,7.751e-05,2]
[422862161,1779539438000,-300.0,7.751e-05,2]
[422862167,1779539438000,-6204.21141356,8.115e-05,2]
[422862123,1779539438000,-563.4056743,7.599e-05,2]
[422862159,1779539438000,-300.0,7.751e-05,2]
[422862144,1779539438000,-846.38854326,7.599e-05,2]
[422862166,1779539438000,-166.76412478,8e-05,2]
[422862140,1779539438000,-795.82076545,7.599e-05,2]
[422862121,1779539438000,-9986.48315823,7.598e-05,2]
[422862126,1779539438000,-563.4056743,7.599e-05,2]
[422862128,1779539438000,-563.4056743,7.599e-05,2]
[422862130,1779539438000,-563.4056743,7.599e-05,2]
[422862122,1779539438000,-563.4056743,7.599e-05,2]
[422862127,1779539438000,-563.4056743,7.599e-05,2]
[422862135,1779539438000,-795.82076545,7.599e-05,2]
[422862137,1779539438000,-795.82076545,7.599e-05,2]
[422862129,1779539438000,-563.4056743,7.599e-05,2]
[422862139,1779539438000,-795.82076545,7.599e-05,2]
[422862133,1779539438000,-563.4056743,7.599e-05,2]
[422862138,1779539438000,-795.82076545,7.599e-05,2]
[422862136,1779539438000,-795.82076545,7.599e-05,2]
[422862131,1779539438000,-563.4056743,7.599e-05,2]
[422862134,1779539438000,-563.4056743,7.599e-05,2]
[422862141,1779539438000,-795.82076545,7.599e-05,2]
[422862152,1779539438000,-300.0,7.751e-05,2]
[422862168,1779539438000,-3528.57304545,8.115e-05,2]
[422862153,1779539438000,-300.0,7.751e-05,2]
[422862151,1779539438000,-300.0,7.751e-05,2]
[422862132,1779539438000,-563.4056743,7.599e-05,2]
[422862146,1779539438000,-846.38854326,7.599e-05,2]
[422862212,1779539440000,-341.44406342,8.115e-05,2]
[422862204,1779539440000,-2243.08747746,8.115e-05,2]
[422862190,1779539440000,-1706.84571692,8.115e-05,2]
[422862188,1779539440000,-7457.91225139,8.115e-05,2]
[422862329,1779539443000,-1500.50911484,8.115e-05,2]
[422862330,1779539443000,-12167.41691696,8.115e-05,2]
[422862332,1779539443000,-1504.3502,8.117e-05,2]
[422862331,1779539443000,-6303.71474196,8.117e-05,2]
[422862333,1779539443000,-454.96465952,8.117e-05,2]
[422862343,1779539446000,-5181.52053099,8.117e-05,2]
[422862342,1779539446000,-5198.5866164,8.117e-05,2]
[422862341,1779539446000,-9200.84485471,8.117e-05,2]
[422862350,1779539989000,230.352642,3.453e-05,2]
[422862364,1779540561000,-474.10764551,6.787e-05,2]
[422862363,1779540561000,-5000.0,6.702e-05,2]
[422862370,1779540632000,-888.34205459,6.719e-05,2]
[422862471,1779540640000,-1619.27965824,6.719e-05,2]
[422862803,1779540749000,1272.46,0.00017808,120]
[422862816,1779541272000,-401.88566856,6.262e-05,2]
[422862823,1779541530000,-173.91297121,6.137e-05,2]
[422862844,1779541746000,-502.23219048,7.712e-05,2]
[422862839,1779541746000,-1374.8234178,6.99e-05,2]
[422862841,1779541746000,-1461.57425128,7.488e-05,2]
[422862840,1779541746000,-15741.49891333,6.99e-05,2]
[422862842,1779541746000,-500.0,7.712e-05,2]
[422862838,1779541746000,-230.352642,6.907e-05,2]
[422862837,1779541746000,-1288.07258432,6.493e-05,2]
[422862829,1779541746000,-5000.0,5.955e-05,2]
[422862833,1779541746000,-604.2275448,6.125e-05,2]
[422862834,1779541746000,-1156.15624077,6.225e-05,2]
[422862832,1779541746000,-300.0,6.124e-05,2]
[422862831,1779541746000,-499.66185246,6.046e-05,2]
[422862830,1779541746000,-4215.49073231,6.015e-05,2]
[422862843,1779541746000,-500.0,7.712e-05,2]
[422862835,1779541746000,-1201.32175097,6.325e-05,2]
[422862845,1779541746000,-500.0,7.712e-05,2]
[422862836,1779541746000,-227.0,6.419e-05,2]
[422862847,1779541746000,-477.34114189,7.712e-05,2]
[422862846,1779541746000,-500.0,7.712e-05,2]
[422862860,1779541746000,-697.91825638,7.713e-05,2]
[422862858,1779541746000,-697.91825638,7.713e-05,2]
[422862859,1779541746000,-697.91825638,7.713e-05,2]
[422862857,1779541746000,-697.91825638,7.713e-05,2]
[422862856,1779541746000,-697.91825638,7.713e-05,2]
[422862855,1779541746000,-500.0,7.712e-05,2]
[422862861,1779541746000,-697.91825638,7.713e-05,2]
[422862853,1779541746000,-500.0,7.712e-05,2]
[422862854,1779541746000,-500.0,7.712e-05,2]
[422862852,1779541746000,-500.0,7.712e-05,2]
[422862850,1779541746000,-379.45535758,7.712e-05,2]
[422862851,1779541746000,-500.0,7.712e-05,2]
[422862849,1779541746000,-376.26516478,7.712e-05,2]
[422862848,1779541746000,-500.0,7.712e-05,2]
[422862862,1779541746000,-697.91825638,7.713e-05,2]
[422862873,1779541747000,-732.81416921,7.713e-05,2]
[422862874,1779541747000,-732.81416921,7.713e-05,2]
[422862871,1779541747000,-697.91825638,7.713e-05,2]
[422862872,1779541747000,-732.81416921,7.713e-05,2]
[422862868,1779541747000,-697.91825638,7.713e-05,2]
[422862869,1779541747000,-697.91825638,7.713e-05,2]
[422862864,1779541747000,-697.91825638,7.713e-05,2]
[422862866,1779541747000,-697.91825638,7.713e-05,2]
[422862867,1779541747000,-697.91825638,7.713e-05,2]
[422862865,1779541747000,-697.91825638,7.713e-05,2]
[422862863,1779541747000,-697.91825638,7.713e-05,2]
[422862876,1779541747000,-732.81416921,7.713e-05,2]
[422862870,1779541747000,-697.91825638,7.713e-05,2]
[422862875,1779541747000,-732.81416921,7.713e-05,2]
[422862882,1779541747000,-725.48602751,7.713e-05,2]
[422862878,1779541747000,-732.81416921,7.713e-05,2]
[422862892,1779541747000,-64931.92125819,8.117e-05,2]
[422862891,1779541747000,-163.48251496,8.108e-05,2]
[422862888,1779541747000,-2460.3635923,7.987e-05,2]
[422862890,1779541747000,-589.6009859,8.046e-05,2]
[422862877,1779541747000,-732.81416921,7.713e-05,2]
[422862886,1779541747000,-179.50288579,7.865e-05,2]
[422862885,1779541747000,-163.48251496,7.865e-05,2]
[422862889,1779541747000,-289.0,8e-05,5]
[422862887,1779541747000,-1547.50160401,7.985e-05,2]
[422862883,1779541747000,-35499.87889796,7.714e-05,2]
[422862881,1779541747000,-725.48602751,7.713e-05,2]
[422862879,1779541747000,-732.81416921,7.713e-05,2]
[422862880,1779541747000,-732.81416921,7.713e-05,2]
[422862884,1779541747000,-31592.3839235,7.714e-05,2]
[422862913,1779541832000,-976.25152329,7.463e-05,2]
[422862905,1779541832000,-605.52935036,7.463e-05,2]
[422863167,1779541838000,-208.71062792,7.538e-05,2]
[422863166,1779541838000,-3418.21912635,7.463e-05,2]
[422863168,1779541838000,-50028.35784865,7.614e-05,2]
[422863171,1779541838000,-90983.92009583,7.614e-05,2]
[422863172,1779541838000,-27835.97692667,7.614e-05,2]
[422863173,1779541838000,-166.76412478,8e-05,2]
[422863174,1779541838000,-102059.97487555,8.117e-05,2]
[422863169,1779541838000,-57634.34385343,7.614e-05,2]
[422863170,1779541838000,-3602.28317333,7.614e-05,2]
[422863281,1779541843000,-104.59964981,8.117e-05,2]
[422863285,1779541843000,-10828.6594506,8.117e-05,2]
[422863283,1779541843000,-2682.75126377,8.117e-05,2]
[422863282,1779541843000,-1335.28898699,8.117e-05,2]
[422863284,1779541843000,-5584.59091391,8.117e-05,2]
[422863280,1779541843000,-297.27099477,7.388e-05,2]
[422863286,1779541844000,-302.62139999,8.117e-05,2]
[422863292,1779541846000,-3875.2381898,8.117e-05,2]
[422863294,1779541847000,-18388.30750984,8.117e-05,2]
[422863293,1779541847000,-97442.93744851,8.117e-05,2]
[422863295,1779541847000,-14414.01539429,8.117e-05,2]
[422863300,1779542002000,165.935515,3.492e-05,2]
[422863304,1779542738000,-355.84480438,5.083e-05,2]
[422863305,1779542808000,5000.0,5e-05,2]
[422863306,1779542825000,-274.38151082,5.134e-05,2]
[422863307,1779542839000,3994.48745367,5e-05,2]
[422863308,1779542843000,-5000.0,5.083e-05,2]
[422863309,1779542843000,-237.18893937,5.134e-05,2]
[422863310,1779542843000,-165.935515,5.238e-05,2]
[422863311,1779542843000,-165.935515,6.984e-05,2]
[422863313,1779542843000,-1200.0,7.751e-05,2]
[422863314,1779542843000,-300.0,7.752e-05,2]
[422863315,1779542843000,-3500.09854855,7.753e-05,2]
[422863312,1779542843000,-603.65313122,7.134e-05,2]
[422863350,1779543034000,-8395.14569621,7.653e-05,2]
[422863343,1779543034000,-809.83634132,7.653e-05,2]
[422863503,1779543038000,-500.0,7.652e-05,2]
[422863495,1779543038000,-500.0,7.652e-05,2]
[422863502,1779543038000,-500.0,7.652e-05,2]
[422863501,1779543038000,-571.84731039,7.652e-05,2]
[422863496,1779543038000,-500.0,7.652e-05,2]
[422863491,1779543038000,-500.0,7.652e-05,2]
[422863490,1779543038000,-500.0,7.652e-05,2]
[422863493,1779543038000,-500.0,7.652e-05,2]
[422863494,1779543038000,-500.0,7.652e-05,2]
[422863484,1779543038000,-500.0,7.652e-05,2]
[422863486,1779543038000,-409.15686051,7.652e-05,2]
[422863487,1779543038000,-294.12619958,7.652e-05,2]
[422863488,1779543038000,-500.0,7.652e-05,2]
[422863489,1779543038000,-500.0,7.652e-05,2]
[422863485,1779543038000,-90.84313949,7.652e-05,2]
[422863492,1779543038000,-500.0,7.652e-05,2]
[422863506,1779543038000,-500.0,7.652e-05,2]
[422863499,1779543038000,-500.0,7.652e-05,2]
[422863504,1779543038000,-500.0,7.652e-05,2]
[422863517,1779543038000,-12859.83458152,7.653e-05,2]
[422863518,1779543038000,-29037.01819334,7.653e-05,2]
[422863514,1779543038000,-500.0,7.652e-05,2]
[422863516,1779543038000,-500.0,7.652e-05,2]
[422863513,1779543038000,-500.0,7.652e-05,2]
[422863515,1779543038000,-500.0,7.652e-05,2]
[422863519,1779543038000,-1751.73676825,7.653e-05,2]
[422863505,1779543038000,-500.0,7.652e-05,2]
[422863512,1779543038000,-500.0,7.652e-05,2]
[422863511,1779543038000,-500.0,7.652e-05,2]
[422863510,1779543038000,-500.0,7.652e-05,2]
[422863500,1779543038000,-500.0,7.652e-05,2]
[422863497,1779543038000,-500.0,7.652e-05,2]
[422863498,1779543038000,-500.0,7.652e-05,2]
[422863507,1779543038000,-500.0,7.652e-05,2]
[422863508,1779543038000,-500.0,7.652e-05,2]
[422863509,1779543038000,-500.0,7.652e-05,2]
[422863662,1779543043000,-500.0,7.653e-05,2]
[422863678,1779543050000,-30.48683453,7.576e-05,2]
[422863677,1779543050000,-4034.02576527,7.576e-05,2]
[422863679,1779543050000,-935.4874002,7.576e-05,2]
[422863680,1779543050000,-305.93611637,7.653e-05,2]
[422863681,1779543559000,165.749518,2.696e-05,2]
[422863687,1779544001000,494.2245872,5e-05,2]
[422863688,1779544021000,-4948.07485297,5.05e-05,2]
[422863708,1779544146000,-300.0,5.609e-05,2]
[422863705,1779544146000,-300.0,5.609e-05,2]
[422863706,1779544146000,-300.0,5.609e-05,2]
[422863704,1779544146000,-300.0,5.609e-05,2]
[422863702,1779544146000,-300.0,5.609e-05,2]
[422863703,1779544146000,-300.0,5.609e-05,2]
[422863700,1779544146000,-443.99212189,5.5e-05,2]
[422863701,1779544146000,-822.27673675,5.5e-05,2]
[422863696,1779544146000,-1200.0,5.499e-05,2]
[422863699,1779544146000,-2196.60670086,5.5e-05,2]
[422863697,1779544146000,-300.0,5.499e-05,2]
[422863695,1779544146000,-502.3336526,5.454e-05,2]
[422863694,1779544146000,-441.4529596,5.23e-05,2]
[422863693,1779544146000,-498.79365801,5.102e-05,2]
[422863692,1779544146000,-51.92514703,5.05e-05,2]
[422863698,1779544146000,-1139.75736353,5.5e-05,2]
[422863707,1779544146000,-300.0,5.609e-05,2]
[422863716,1779544146000,-300.0,5.609e-05,2]
[422863709,1779544146000,-300.0,5.609e-05,2]
[422863725,1779544146000,-420.0,6.654e-05,2]
[422863710,1779544146000,-300.0,5.609e-05,2]
[422863727,1779544146000,-2530.92341756,6.794e-05,2]
[422863723,1779544146000,-720.0,6.292e-05,2]
[422863726,1779544146000,-1452.73869756,6.677e-05,2]
[422863721,1779544146000,-420.0,6.049e-05,2]
[422863722,1779544146000,-1219.86315421,6.258e-05,2]
[422863720,1779544146000,-1680.0,6.049e-05,2]
[422863724,1779544146000,-2363.76505914,6.346e-05,2]
[422863719,1779544146000,-2199.08725908,5.897e-05,2]
[422863715,1779544146000,-300.0,5.609e-05,2]
[422863713,1779544146000,-300.0,5.609e-05,2]
[422863717,1779544146000,-600.0,5.72e-05,2]
[422863714,1779544146000,-300.0,5.609e-05,2]
[422863711,1779544146000,-300.0,5.609e-05,2]
[422863718,1779544146000,-1200.56135161,5.838e-05,2]
[422863712,1779544146000,-300.0,5.609e-05,2]
[422863738,1779544147000,-500.0,7.027e-05,2]
[422863742,1779544147000,-500.0,7.027e-05,2]
[422863741,1779544147000,-500.0,7.027e-05,2]
[422863740,1779544147000,-386.11381961,7.027e-05,2]
[422863739,1779544147000,-500.0,7.027e-05,2]
[422863737,1779544147000,-500.0,7.027e-05,2]
[422863731,1779544147000,-185.58313279,7.027e-05,2]
[422863733,1779544147000,-500.0,7.027e-05,2]
[422863734,1779544147000,-220.64673228,7.027e-05,2]
[422863732,1779544147000,-500.0,7.027e-05,2]
[422863730,1779544147000,-500.0,7.027e-05,2]
[422863728,1779544147000,-864.0,6.921e-05,2]
[422863729,1779544147000,-500.0,7.027e-05,2]
[422863744,1779544147000,-500.0,7.027e-05,2]
[422863735,1779544147000,-500.0,7.027e-05,2]
[422863743,1779544147000,-500.0,7.027e-05,2]
[422863736,1779544147000,-500.0,7.027e-05,2]
[422863746,1779544147000,-635.58375068,7.027e-05,2]
[422863745,1779544147000,-500.0,7.027e-05,2]
[422863761,1779544147000,-2698.08177598,7.243e-05,2]
[422863762,1779544147000,-876.66490986,7.475e-05,2]
[422863759,1779544147000,-1578.84596647,7.096e-05,2]
[422863757,1779544147000,-500.0,7.027e-05,2]
[422863758,1779544147000,-418.87972042,7.029e-05,2]
[422863756,1779544147000,-500.0,7.027e-05,2]
[422863754,1779544147000,-173.93349336,7.027e-05,2]
[422863760,1779544147000,-588.57651646,7.102e-05,2]
[422863752,1779544147000,-500.0,7.027e-05,2]
[422863749,1779544147000,-500.0,7.027e-05,2]
[422863753,1779544147000,-500.0,7.027e-05,2]
[422863748,1779544147000,-500.0,7.027e-05,2]
[422863750,1779544147000,-500.0,7.027e-05,2]
[422863751,1779544147000,-500.0,7.027e-05,2]
[422863747,1779544147000,-500.0,7.027e-05,2]
[422863755,1779544147000,-500.0,7.027e-05,2]
[422863763,1779544171000,-4295.33355356,6.957e-05,2]
[422863822,1779544232000,-599.94622165,6.957e-05,2]
[422863826,1779544232000,-280.04815021,7.167e-05,2]
[422863824,1779544232000,-104.72022479,6.957e-05,2]
[422863863,1779544238000,-151.0,7.573e-05,2]
[422863858,1779544238000,-319.95184979,7.167e-05,2]
[422863860,1779544238000,-2085.1481592,7.476e-05,2]
[422863861,1779544238000,-2601.7961079,7.476e-05,2]
[422863862,1779544238000,-1685.61424105,7.515e-05,2]
[422863859,1779544238000,-49217.8799085,7.476e-05,2]
[422863868,1779544238000,-1918.48978453,7.934e-05,2]
[422863864,1779544238000,-151.0,7.573e-05,2]
[422863870,1779544238000,-36509.66365875,8.117e-05,2]
[422863866,1779544238000,-2863.68054377,7.691e-05,2]
[422863869,1779544238000,-185.54457355,8e-05,2]
[422863867,1779544238000,-720.0,7.884e-05,2]
[422863865,1779544238000,-151.0,7.573e-05,2]